bitfinex/quotes_SOLUSD_20260213
["timestamp","ask_amount","ask_price","bid_price","bid_amount"]
[1771024149069,3.88393115,84.5,84.471,0.51545937]
[1771024149267,3.88393115,84.49,84.461,0.51545937]
[1771024149571,3.88393115,84.5,84.461,0.51545937]
[1771024149962,11.83445957,84.499,84.461,0.51545937]
[1771024150544,41.42060851,84.499,84.461,0.51545937]
[1771024151557,41.42060851,84.499,84.471,0.51545937]
[1771024151558,11.83445957,84.499,84.471,0.51545937]
[1771024155460,41.42060851,84.499,84.452,0.51545937]
[1771024155666,41.42060851,84.499,84.461,0.51545937]
[1771024157560,11.83445957,84.499,84.461,0.51545937]
[1771024157758,3.88393115,84.49,84.461,0.51545937]
[1771024157958,11.83445957,84.499,84.461,0.51545937]
[1771024158147,11.83378815,84.504,84.47,3.88393115]
[1771024158347,47.38,84.515,84.481,0.51545937]
[1771024158558,3.88393115,84.51,84.481,0.51545937]
[1771024159549,11.8330592,84.509,84.481,0.51545937]
[1771024160770,3.88393115,84.5,84.471,0.51545937]
[1771024162272,11.83445957,84.499,84.471,0.51545937]
[1771024169369,11.83165915,84.519,84.48,3.88393115]
[1771024169571,47.42,84.515,84.481,0.51545937]
[1771024169775,11.83165915,84.519,84.481,0.51545937]
[1771024170274,3.88393115,84.51,84.481,0.51545937]
[1771024170863,3.88393115,84.49,84.475,0.51545937]
[1771024172378,11.83586028,84.489,84.468,0.51545937]
[1771024173180,11.83586028,84.489,84.454,0.51545937]
[1771024174677,3.88393115,84.47,84.447,0.51545937]
[1771024175555,3.88393115,84.47,84.431,0.51545937]
[1771024175864,3.88393115,84.46,84.431,0.51545937]
[1771024176263,3.88393115,84.45,84.431,0.51545937]
[1771024177075,11.84146644,84.449,84.424,0.51545937]
[1771024177256,3.88393115,84.44,84.417,0.51545937]
[1771024178075,41.44513255,84.449,84.41,0.51545937]
[1771024178076,3.88393115,84.43,84.41,0.51545937]
[1771024180887,3.88450437,84.43,84.41,0.51545937]
[1771024181961,11.84323557,84.437,84.41,0.51545937]
[1771024183765,3.88450437,84.44,84.41,0.51545937]
[1771024184185,11.84286881,84.439,84.41,0.51545937]
[1771024201599,3.88450437,84.43,84.41,0.51545937]
[1771024202595,3.88450437,84.44,84.41,0.51545937]
[1771024202999,3.88450437,84.43,84.41,0.51545937]
[1771024203202,3.88450437,84.43,84.405,0.51545937]
[1771024204489,11.84427151,84.429,84.405,0.51545937]
[1771024205481,3.88450437,84.44,84.405,0.51545937]
[1771024207501,11.84286881,84.439,84.405,0.51545937]
[1771024207696,10.42089939,84.439,84.406,0.51545937]
[1771024209896,11.84146644,84.449,84.406,0.51545937]
[1771024210093,11.84146644,84.449,84.411,0.51545937]
[1771024211288,41.44513255,84.449,84.411,0.51545937]
[1771024212707,3.88450437,84.44,84.411,0.51545937]
[1771024214097,11.84286881,84.439,84.411,0.51545937]
[1771024217288,29.60366611,84.449,84.411,0.51545937]
[1771024219913,41.44513255,84.449,84.411,0.51545937]
[1771024222489,3.88450437,84.44,84.411,0.51545937]
[1771024225213,41.44513255,84.449,84.411,0.51545937]
[1771024226415,11.8409192,84.453,84.411,0.51545937]
[1771024226820,29.60019755,84.459,84.421,0.51545937]
[1771024226821,11.84010681,84.459,84.421,0.51545937]
[1771024227116,11.84010681,84.459,84.431,0.51545937]
[1771024227319,6.17695052,84.511,84.441,0.51545937]
[1771024227320,3.88450437,84.48,84.441,0.51545937]
[1771024227521,60.05726133,84.479,84.441,0.51545937]
[1771024228100,41.43041465,84.479,84.441,0.51545937]
[1771024228304,48.22,84.478,84.441,0.51545937]
[1771024231409,3.88450437,84.47,84.441,0.51545937]
[1771024231809,3.88450437,84.46,84.432,24.5]
[1771024232215,3.88450437,84.46,84.432,25.01545937]
[1771024233326,11.8400644,84.459,84.433,0.51545937]
[1771024236030,3.88450437,84.47,84.433,0.51545937]
[1771024236430,3.88450437,84.47,84.441,0.51545937]
[1771024236727,11.83586028,84.489,84.461,0.51545937]
[1771024238032,11.83445957,84.499,84.471,0.51545937]
[1771024239432,3.88450437,84.49,84.466,0.51545937]
[1771024239632,3.88450437,84.49,84.455,0.51545937]
[1771024239932,3.88450437,84.48,84.455,0.51545937]
[1771024240729,3.88450437,84.49,84.455,0.51545937]
[1771024240912,11.83586028,84.489,84.455,0.51545937]
[1771024241825,3.87965955,84.48,84.455,0.51545937]
[1771024243540,11.83726133,84.479,84.455,0.51545937]
[1771024257668,11.83586028,84.489,84.455,0.51545937]
[1771024261782,41.425511,84.489,84.455,0.51545937]
[1771024262079,0.48534377,84.469,84.437,24.74]
[1771024262575,0.48533454,84.459,84.437,24.74]
[1771024263170,0.48533454,84.457,84.42,28.61965955]
[1771024263874,0.48533454,84.457,84.421,0.47953448]
[1771024264968,3.87965955,84.45,84.421,0.47953448]
[1771024265174,0.48531641,84.449,84.421,0.47953448]
[1771024266867,0.48529869,84.439,84.415,0.47953448]
[1771024267179,3.87965955,84.44,84.415,0.47953448]
[1771024267180,0.48529869,84.437,84.415,0.47953448]
[1771024267963,48.34,84.463,84.415,0.47953448]
[1771024267964,3.87965955,84.45,84.415,0.47953448]
[1771024269175,4.36494093,84.45,84.415,0.47953448]
[1771024269481,11.84146644,84.449,84.415,0.47953448]
[1771024269984,0.48527287,84.448,84.415,0.47953448]
[1771024271588,3.87965955,84.45,84.415,0.47953448]
[1771024271589,3.87965955,84.44,84.415,0.47953448]
[1771024275084,0.48523177,84.443,84.415,0.47953448]
[1771024279169,0.48520056,84.441,84.415,0.47953448]
[1771024281086,11.84244807,84.442,84.41,0.47953448]
[1771024281087,0.48518549,84.439,84.41,0.47953448]
[1771024281270,0.48518549,84.437,84.41,0.47953448]
[1771024281873,0.48517808,84.429,84.405,0.47953448]
[1771024282071,3.87965955,84.42,84.405,0.47953448]
[1771024282594,4.36483031,84.42,84.405,0.47953448]
[1771024282772,4.36483031,84.42,84.388,0.47953448]
[1771024283994,0.48517076,84.42,84.391,0.47953448]
[1771024284291,11.84438393,84.429,84.391,0.47953448]
[1771024284492,52.29965955,84.44,84.401,0.47953448]
[1771024284672,3.87965955,84.44,84.401,0.47953448]
[1771024285588,11.84286881,84.439,84.401,0.47953448]
[1771024286871,11.84314933,84.437,84.401,0.47953448]
[1771024287091,0.4851423,84.436,84.401,0.47953448]
[1771024289393,11.84342985,84.435,84.401,0.47953448]
[1771024290478,11.84233881,84.443,84.41,3.87965955]
[1771024290693,11.84153665,84.449,84.411,0.47953448]
[1771024291276,12.31102612,84.449,84.411,0.47953448]
[1771024291799,0.46948947,84.448,84.411,0.47953448]
[1771024292398,0.46948947,84.446,84.411,0.47953448]
[1771024294481,11.84202735,84.445,84.411,0.47953448]
[1771024295404,12.31151682,84.445,84.411,0.47953448]
[1771024297096,0.46948947,84.444,84.411,0.47953448]
[1771024300400,11.84230782,84.443,84.411,0.47953448]
[1771024301693,0.46682919,84.456,84.421,0.48070527]
[1771024301896,0.46682919,84.461,84.43,3.87965955]
[1771024302099,0.46682919,84.461,84.431,0.48070527]
[1771024302498,11.83992422,84.46,84.431,0.48070527]
[1771024303097,12.30675341,84.46,84.431,0.48070527]
[1771024305186,0.46682919,84.459,84.431,0.48070527]
[1771024307413,0.46682919,84.449,84.416,25.14070527]
[1771024307613,0.46682919,84.449,84.417,0.48070527]
[1771024310711,0.46682919,84.439,84.417,0.48070527]
[1771024319407,48.5,84.462,84.4,24.66]
[1771024319408,0.46682919,84.466,84.43,3.88119508]
[1771024319727,0.46682919,84.478,84.441,0.48070527]
[1771024319928,3.88119508,84.49,84.451,0.49114428]
[1771024320125,3.88119508,84.48,84.451,0.49114428]
[1771024321027,48.48,84.495,84.441,0.49114428]
[1771024321028,3.88119508,84.47,84.441,0.49114428]
[1771024321231,3.88119508,84.46,84.441,0.49114428]
[1771024321437,3.88119508,84.47,84.441,0.49114428]
[1771024321619,11.8386627,84.469,84.435,0.49114428]
[1771024325308,3.88119508,84.47,84.441,0.49114428]
[1771024325609,11.8381056,84.473,84.441,0.49114428]
[1771024326425,11.83754157,84.477,84.441,0.49114428]
[1771024336634,3.88119508,84.47,84.441,0.49114428]
[1771024337737,48.76,84.475,84.441,0.49114428]
[1771024341336,11.83796197,84.474,84.441,0.49114428]
[1771024345351,11.83796197,84.474,84.433,0.49114428]
[1771024345352,3.88119508,84.46,84.433,0.49114428]
[1771024348945,11.8400644,84.459,84.433,0.49114428]
[1771024352946,11.8400644,84.459,84.421,0.49114428]
[1771024352947,3.88119508,84.45,84.421,0.49114428]
[1771024353154,3.88119508,84.44,84.421,0.49114428]
[1771024353339,48.9,84.449,84.421,0.49114428]
[1771024354233,11.8400644,84.459,84.421,0.49114428]
[1771024354550,48.9,84.454,84.421,0.49114428]
[1771024355052,3.88119508,84.49,84.441,0.49114428]
[1771024355239,48.92,84.489,84.451,0.49114428]
[1771024355743,3.88119508,84.48,84.451,0.49114428]
[1771024356145,3.88119508,84.47,84.431,0.49114428]
[1771024356337,3.88119508,84.46,84.431,0.49114428]
[1771024358949,11.83880286,84.468,84.431,0.49114428]
[1771024360948,48.9,84.478,84.441,0.49114428]
[1771024362059,11.83754157,84.477,84.441,0.49114428]
[1771024362447,11.83754157,84.477,84.419,34.23118682]
[1771024362448,11.83692397,84.482,84.451,0.49114428]
[1771024362839,3.88119508,84.48,84.451,0.49114428]
[1771024364757,11.83726133,84.479,84.451,0.49114428]
[1771024371247,41.43041465,84.479,84.446,0.49114428]
[1771024383065,11.83726133,84.479,84.446,0.49114428]
[1771024384169,11.83726133,84.479,84.451,0.49577283]
[1771024385171,3.88004265,84.48,84.451,0.49577283]
[1771024388771,11.83726133,84.479,84.451,0.49577283]
[1771024394379,11.83656076,84.484,84.451,0.49577283]
[1771024396062,3.88004265,84.48,84.441,0.49577283]
[1771024396462,3.88004265,84.47,84.441,0.49577283]
[1771024397059,41.43041465,84.479,84.434,0.49577283]
[1771024397060,3.88004265,84.46,84.434,0.49577283]
[1771024398475,11.8400644,84.459,84.434,0.49577283]
[1771024408277,3.88004265,84.45,84.421,0.49577283]
[1771024408485,49.38,84.449,84.421,0.49577283]
[1771024408804,49.38,84.448,84.421,0.49577283]
[1771024409599,11.84174689,84.447,84.421,0.49577283]
[1771024416994,3.88004265,84.44,84.421,0.49577283]
[1771024417192,49.38,84.448,84.421,0.49577283]
[1771024417382,49.52,84.447,84.421,0.49577283]
[1771024417582,11.84154333,84.449,84.421,0.49577283]
[1771024417783,61.36154333,84.449,84.421,0.49577283]
[1771024418175,3.88004265,84.44,84.421,0.49577283]
[1771024418690,61.36154333,84.449,84.421,0.49577283]
[1771024420396,11.84174689,84.447,84.421,0.49577283]
[1771024422200,61.40174689,84.447,84.421,0.49577283]
[1771024423105,61.42174689,84.447,84.421,0.49577283]
[1771024425386,49.6,84.457,84.421,0.49577283]
[1771024426407,3.88004265,84.45,84.421,0.49577283]
[1771024426983,3.88281454,84.45,84.421,0.49577283]
[1771024428698,3.88281454,84.44,84.421,0.49577283]
[1771024429198,11.84146644,84.449,84.421,0.49577283]
[1771024442412,3.88281454,84.44,84.416,0.49962584]
[1771024442623,3.88281454,84.44,84.395,0.49962584]
[1771024444225,11.84286881,84.439,84.395,0.49962584]
[1771024444422,11.84286881,84.439,84.401,0.49962584]
[1771024445124,3.88281454,84.43,84.401,0.49962584]
[1771024446019,3.88281454,84.42,84.401,0.49962584]
[1771024446326,11.84427151,84.429,84.401,0.49962584]
[1771024451017,3.88281454,84.42,84.401,0.49962584]
[1771024451715,3.88281454,84.44,84.401,0.49962584]
[1771024453427,11.84286881,84.439,84.401,0.49962584]
[1771024454540,11.84286881,84.439,84.411,0.49962584]
[1771024459848,11.84227312,84.444,84.411,0.49962584]
[1771024460140,3.88281454,84.44,84.411,0.49962584]
[1771024465427,29.60022182,84.459,84.413,0.49962584]
[1771024465741,11.84020459,84.458,84.431,0.49962584]
[1771024474057,3.88281454,84.45,84.431,0.49962584]
[1771024477972,15.72424672,84.45,84.431,0.49962584]
[1771024479773,11.84160666,84.448,84.431,0.49962584]
[1771024480762,3.88281454,84.44,84.411,0.49114428]
[1771024480966,41.44562333,84.448,84.411,0.49114428]
[1771024486855,11.84160666,84.448,84.411,0.49114428]
[1771024502065,50.0,84.449,84.412,0.49114428]
[1771024502269,61.8415922,84.449,84.421,0.49114428]
[1771024503685,62.1215922,84.449,84.421,0.49114428]
[1771024505500,103.5,84.474,84.431,0.49114428]
[1771024505682,50.3,84.468,84.431,0.49114428]
[1771024507383,11.83894301,84.467,84.431,0.49114428]
[1771024508601,11.83894301,84.467,84.433,0.49114428]
[1771024510294,11.83894301,84.467,84.44,3.88273939]
[1771024510494,11.83894301,84.467,84.441,0.49114428]
[1771024511210,11.83431952,84.5,84.461,0.49114428]
[1771024511413,11.83431952,84.5,84.443,4.61729252]
[1771024511414,11.83431952,84.5,84.481,0.49114428]
[1771024512422,11.8330592,84.509,84.481,0.49114428]
[1771024512790,50.36,84.508,84.481,0.49114428]
[1771024513098,29.57505159,84.531,84.491,0.49114428]
[1771024513299,3.88273939,84.52,84.491,0.49114428]
[1771024513880,95.66815758,84.53,84.491,0.49114428]
[1771024514107,3.88273939,84.52,84.491,0.49114428]
[1771024514487,41.41080703,84.519,84.491,0.49114428]
[1771024514791,3.88273939,84.51,84.491,0.49114428]
[1771024515702,41.41080703,84.519,84.491,0.49114428]
[1771024517696,11.83165915,84.519,84.491,0.49114428]
[1771024519182,29.57578352,84.529,84.491,0.49114428]
[1771024519408,50.42,84.529,84.501,0.49114428]
[1771024520302,11.83039939,84.528,84.501,0.49114428]
[1771024520891,50.42,84.527,84.501,0.49114428]
[1771024521206,50.42,84.527,84.481,0.49114428]
[1771024521207,3.88273939,84.52,84.481,0.49114428]
[1771024522408,50.42,84.527,84.491,0.49114428]
[1771024522607,11.83057493,84.527,84.491,0.49114428]
[1771024523101,11.83057493,84.527,84.501,0.49114428]
[1771024524219,11.82886005,84.539,84.51,3.88273939]
[1771024524408,11.82886005,84.539,84.511,0.49114428]
[1771024524805,0.2,84.54,84.511,0.49114428]
[1771024525615,0.2,84.55,84.521,0.45183125]
[1771024526024,0.21774454,84.549,84.521,0.45183125]
[1771024526326,0.2,84.55,84.521,0.45183125]
[1771024527927,0.2,84.55,84.505,4.61729252]
[1771024527928,0.2,84.56,84.531,0.45183125]
[1771024530701,11.82227452,84.587,84.561,0.45183125]
[1771024530905,11.82275066,84.583,84.561,0.45183125]
[1771024531107,0.49101366,84.579,84.561,0.45183125]
[1771024531526,0.2,84.58,84.561,0.45183125]
[1771024531830,0.49101366,84.579,84.561,0.45183125]
[1771024532027,0.49101366,84.579,84.55,3.88273939]
[1771024532231,0.49101366,84.578,84.546,0.45134801]
[1771024532419,0.49101366,84.569,84.536,0.45134801]
[1771024533710,11.8248037,84.568,84.536,0.45134801]
[1771024533918,0.49101366,84.559,84.536,0.45134801]
[1771024536127,0.49101366,84.557,84.523,0.45134801]
[1771024537022,0.49101366,84.557,84.514,24.74]
[1771024537023,0.49101366,84.549,84.514,24.74]
[1771024537225,3.88273939,84.53,84.504,0.45134801]
[1771024537528,0.49101366,84.529,84.504,0.45134801]
[1771024538127,41.39268649,84.556,84.49,3.88273939]
[1771024538128,0.49101366,84.519,84.49,0.45134801]
[1771024538332,100.52509578,84.556,84.484,0.45134801]
[1771024538333,0.49101366,84.509,84.484,0.45134801]
[1771024538625,0.45834993,84.509,84.478,0.45134801]
[1771024538812,3.88273939,84.5,84.478,0.45134801]
[1771024539014,3.88273939,84.5,84.47,0.45134801]
[1771024539522,11.8330592,84.509,84.471,0.45134801]
[1771024539705,3.88273939,84.52,84.481,0.45134801]
[1771024540521,0.49101366,84.519,84.481,0.45134801]
[1771024540723,11.83081928,84.525,84.482,0.46543609]
[1771024540909,3.88273939,84.52,84.482,0.46543609]
[1771024541227,3.88273939,84.52,84.484,0.46543609]
[1771024541527,11.83165915,84.519,84.484,0.46543609]
[1771024542827,12.12572009,84.519,84.484,0.46543609]
[1771024543823,0.29406063,84.518,84.484,0.46543609]
[1771024545830,0.29406002,84.516,84.484,0.46543609]
[1771024546028,0.29405972,84.509,84.484,0.46543609]
[1771024546205,0.29405972,84.509,84.473,24.74]
[1771024546411,0.29405972,84.499,84.473,24.74]
[1771024547227,0.29405972,84.499,84.474,0.46543609]
[1771024547417,0.29405943,84.511,84.481,0.46543609]
[1771024548137,11.83198787,84.517,84.482,0.46543609]
[1771024548318,11.83198787,84.517,84.491,0.46543609]
[1771024550327,12.1247368,84.527,84.491,0.46543609]
[1771024550525,12.1247368,84.527,84.501,0.46543609]
[1771024551726,11.83081928,84.525,84.501,0.46543609]
[1771024551928,12.12487756,84.525,84.501,0.46543609]
[1771024552234,0.294058,84.519,84.491,0.46543609]
[1771024552425,0.294058,84.509,84.486,0.46543609]
[1771024552627,0.294058,84.509,84.48,0.46543609]
[1771024552815,0.294058,84.499,84.474,0.46543609]
[1771024554234,11.83459963,84.498,84.474,0.46543609]
[1771024554639,0.29405745,84.497,84.474,0.46543609]
[1771024557121,12.12893641,84.496,84.474,0.46543609]
[1771024557342,0.29405666,84.495,84.462,0.46543609]
[1771024557517,0.29405666,84.489,84.462,0.46543609]
[1771024558532,11.83600037,84.488,84.462,0.46543609]
[1771024560557,11.83600037,84.488,84.451,24.74]
[1771024560558,3.87523426,84.48,84.456,0.46543609]
[1771024560725,0.29405588,84.479,84.451,0.46543609]
[1771024564441,0.29405466,84.469,84.451,0.46543609]
[1771024565636,0.29405442,84.477,84.451,0.46543609]
[1771024567531,3.87523426,84.48,84.451,0.46543609]
[1771024567532,12.13173566,84.476,84.451,0.46543609]
[1771024567731,0.29405396,84.475,84.451,0.46543609]
[1771024568055,3.87523426,84.48,84.44,0.49290717]
[1771024568056,0.29405373,84.459,84.44,0.49290717]
[1771024571564,0.29405306,84.469,84.44,0.49290717]
[1771024572932,0.29405284,84.459,84.435,0.49290717]
[1771024574269,0.29405284,84.459,84.421,24.78]
[1771024574270,3.87523426,84.45,84.421,24.78]
[1771024574457,0.46751324,84.449,84.421,24.78]
[1771024575881,0.46751324,84.449,84.41,3.87523426]
[1771024576372,0.46751324,84.447,84.411,0.49290717]
[1771024576748,0.46751324,84.447,84.412,0.49290717]
[1771024578562,0.46751324,84.445,84.412,0.49290717]
[1771024584563,3.87523426,84.45,84.412,0.49290717]
[1771024584564,0.46751324,84.443,84.412,0.49290717]
[1771024587063,0.46751324,84.448,84.421,0.49290717]
[1771024592986,0.45147695,84.446,84.421,0.49290717]
[1771024593291,0.45147695,84.439,84.411,0.47439207]
[1771024593590,0.45147695,84.444,84.411,0.47439207]
[1771024595392,0.45147695,84.456,84.421,0.47439207]
[1771024597079,0.45147695,84.454,84.421,0.47439207]
[1771024597886,15.71525671,84.46,84.418,11.84576991]
[1771024597887,0.45147695,84.459,84.431,0.47439207]
[1771024603813,0.47050593,84.457,84.431,0.47439207]
[1771024606700,0.47050593,84.449,84.421,0.49566653]
[1771024606994,0.47050593,84.439,84.402,11.84805184]
[1771024607792,0.47050593,84.429,84.393,24.88]
[1771024608786,0.47050593,84.429,84.394,0.49566653]
[1771024609711,0.47050593,84.429,84.396,0.49566653]
[1771024609887,0.47050593,84.429,84.401,0.49566653]
[1771024613090,0.47050593,84.439,84.401,0.49566653]
[1771024615419,11.84300907,84.438,84.401,0.49566653]
[1771024615599,0.47050593,84.437,84.401,0.49566653]
[1771024626328,0.46408108,84.435,84.401,0.49566653]
[1771024626725,0.46408108,84.433,84.401,0.49566653]
[1771024633828,3.88414876,84.43,84.401,0.49566653]
[1771024634127,0.46408108,84.429,84.401,0.49566653]
[1771024634828,0.46408108,84.419,84.391,0.4503232]
[1771024635213,0.46408108,84.419,84.392,0.4503232]
[1771024635531,0.46408108,84.429,84.401,0.4503232]
[1771024638315,0.46408108,84.436,84.411,0.4503232]
[1771024638928,0.46408108,84.442,84.421,0.4503232]
[1771024639124,0.46408108,84.442,84.416,0.4503232]
[1771024640623,0.46408108,84.439,84.416,0.4503232]
[1771024649114,0.46408108,84.437,84.416,0.4503232]
[1771024649316,0.46408108,84.437,84.4,3.88414876]
[1771024649317,0.46408108,84.437,84.401,12.29852405]
[1771024649518,0.46408108,84.437,84.402,0.4503232]
[1771024650521,0.46408108,84.437,84.411,0.4503232]
[1771024662957,0.49180673,84.435,84.411,0.4503232]
[1771024665236,0.49180673,84.479,84.431,0.474874]
[1771024665438,0.49180673,84.479,84.43,3.88414876]
[1771024665439,0.49180673,84.479,84.44,0.474874]
[1771024665851,0.49180673,84.469,84.44,0.474874]
[1771024666850,0.49180673,84.469,84.441,0.474874]
[1771024667247,0.49180673,84.459,84.431,0.474874]
[1771024667451,0.49180673,84.459,84.426,26.134874]
[1771024667754,0.49180673,84.449,84.421,0.474874]
[1771024668354,3.88414876,84.43,84.41,25.64]
[1771024668538,0.49180673,84.429,84.41,25.64]
[1771024668738,0.49180673,84.429,84.41,26.114874]
[1771024668939,0.49180673,84.429,84.411,0.474874]
[1771024669130,0.49180673,84.429,84.406,0.474874]
[1771024680360,0.49180673,84.419,84.39,0.474874]
[1771024681546,0.49540258,84.409,84.39,0.474874]
[1771024681963,0.49540258,84.399,84.376,0.45898778]
[1771024682154,0.29925998,84.399,84.376,0.45898778]
[1771024686071,0.49540258,84.398,84.376,0.45898778]
[1771024686267,0.49540258,84.398,84.37,0.1]
[1771024686466,0.49540258,84.389,84.37,0.55898778]
[1771024686667,0.49540258,84.399,84.37,0.55898778]
[1771024688263,3.88423062,84.39,84.37,0.1]
[1771024688465,0.49540258,84.389,84.37,0.1]
[1771024690157,11.85002607,84.388,84.37,0.1]
[1771024690379,0.49540258,84.387,84.37,0.1]
[1771024690581,0.49540258,84.403,84.371,0.45898778]
[1771024690762,0.49540258,84.399,84.371,0.45898778]
[1771024691364,0.49540258,84.397,84.371,0.45898778]
[1771024695977,0.49540258,84.389,84.37,0.1]
[1771024697176,3.88423062,84.39,84.37,0.1]
[1771024697177,0.49540258,84.387,84.37,0.1]
[1771024697378,0.49540258,84.379,84.37,0.1]
[1771024699980,0.49540258,84.387,84.37,0.1]
[1771024700681,50.64,84.394,84.36,0.1]
[1771024700682,0.49540258,84.379,84.36,0.1]
[1771024701082,0.49540258,84.379,84.342,0.45898778]
[1771024701294,0.49540258,84.369,84.342,0.45898778]
[1771024702606,0.49540258,84.359,84.33,0.1]
[1771024704991,0.49540258,84.359,84.33,0.55898778]
[1771024706283,50.64,84.363,84.33,0.55898778]
[1771024706284,3.88423062,84.35,84.33,0.1]
[1771024706487,0.49540258,84.349,84.33,0.1]
[1771024706989,0.49540258,84.349,84.33,0.55898778]
[1771024708693,50.64,84.357,84.33,0.55898778]
[1771024708694,0.49540258,84.359,84.33,0.55898778]
[1771024709609,0.49540258,84.359,84.33,0.1]
[1771024710918,15.73822245,84.36,84.33,0.1]
[1771024710919,11.85424026,84.358,84.33,0.1]
[1771024711214,0.4963603,84.357,84.33,0.1]
[1771024711906,0.4963603,84.357,84.33,0.58762679]
[1771024712711,0.4963603,84.365,84.331,0.48762679]
[1771024713717,0.4963603,84.339,84.32,0.1]
[1771024713892,3.88423062,84.36,84.31,0.58762679]
[1771024713893,0.4963603,84.329,84.31,0.1]
[1771024714217,0.4963603,84.329,84.29,3.88423062]
[1771024714218,0.4963603,84.319,84.27,3.88423062]
[1771024714516,0.4963603,84.309,84.271,0.48762679]
[1771024715724,0.4963603,84.309,84.27,3.88423062]
[1771024715725,0.4963603,84.309,84.273,0.48762679]
[1771024716021,0.4963603,84.289,84.26,0.48762679]
[1771024716196,0.4963603,84.289,84.261,0.48762679]
[1771024716698,0.4963603,84.319,84.281,0.48762679]
[1771024716898,0.4963603,84.309,84.281,0.48762679]
[1771024717202,0.4963603,84.3,84.281,0.48762679]
[1771024718494,15.74532427,84.31,84.281,0.48762679]
[1771024718811,47.39786536,84.392,84.281,0.48762679]
[1771024718812,0.48785219,84.315,84.281,0.48762679]
[1771024719198,0.48785219,84.309,84.281,0.48762679]
[1771024720317,0.48785219,84.307,84.275,0.45693741]
[1771024720528,0.48785219,84.299,84.275,0.45693741]
[1771024721817,0.48785219,84.309,84.281,0.45693741]
[1771024728322,0.48785219,84.317,84.291,0.45693741]
[1771024731420,29.64364688,84.336,84.28,3.88423062]
[1771024731421,0.48785219,84.322,84.301,0.45693741]
[1771024731607,3.88423062,84.34,84.311,0.45693741]
[1771024731608,0.48785219,84.339,84.311,0.45693741]
[1771024732515,0.48785219,84.336,84.311,0.45693741]
[1771024732720,59.2622778,84.371,84.321,0.45693741]
[1771024732721,0.48785219,84.352,84.321,0.45693741]
[1771024733029,0.48785219,84.349,84.321,0.45693741]
[1771024735012,0.48785219,84.347,84.321,0.45693741]
[1771024735915,0.48785219,84.347,84.311,0.45693741]
[1771024736129,0.48785219,84.339,84.311,0.45693741]
[1771024738135,50.72,84.345,84.301,0.45693741]
[1771024738136,0.48785219,84.337,84.301,0.45693741]
[1771024740230,11.85646507,84.343,84.311,0.45693741]
[1771024740432,11.85646507,84.343,84.289,29.65975383]
[1771024740433,50.72,84.345,84.321,0.45693741]
[1771024740733,51.20785219,84.345,84.321,0.45693741]
[1771024740937,0.48754614,84.343,84.321,0.45693741]
[1771024742851,0.48754614,84.343,84.302,11.86211477]
[1771024742852,50.76,84.354,84.331,0.4735428]
[1771024743020,50.76,84.357,84.331,0.4735428]
[1771024743339,0.48754614,84.356,84.331,0.4735428]
[1771024744332,0.48754614,84.349,84.313,0.4735428]
[1771024747142,11.85564565,84.348,84.313,0.4735428]
[1771024747347,0.48754614,84.347,84.313,0.4735428]
[1771024748640,0.48754614,84.344,84.313,0.4735428]
[1771024753051,0.48754614,84.342,84.313,0.4735428]
[1771024753354,0.48754614,84.342,84.211,47.49955647]
[1771024753355,0.48754614,84.327,84.296,0.4735428]
[1771024756935,0.48754614,84.327,84.267,29.66747659]
[1771024756936,3.89198907,84.31,84.275,0.4735428]
[1771024757247,0.48754614,84.299,84.261,0.4735428]
[1771024758538,0.48754614,84.299,84.263,0.4735428]
[1771024759449,0.48754614,84.309,84.271,0.4735428]
[1771024759659,50.88,84.306,84.271,0.4735428]
[1771024760262,0.48754614,84.309,84.281,0.4735428]
[1771024765855,0.48754614,84.309,84.256,25.3]
[1771024765856,0.48754614,84.339,84.301,0.4735428]
[1771024766166,0.48754614,84.339,84.311,0.4735428]
[1771024767569,0.48754614,84.339,84.305,0.4735428]
[1771024767764,0.48754614,84.327,84.299,0.4735428]
[1771024771166,12.31579544,84.326,84.301,0.45368963]
[1771024772648,0.45705674,84.325,84.301,0.45368963]
[1771024773670,12.31594568,84.325,84.301,0.45368963]
[1771024775571,0.45705674,84.324,84.301,0.45368963]
[1771024777471,0.45705674,84.322,84.301,0.45368963]
[1771024777670,0.45705674,84.322,84.291,0.45368963]
[1771024778666,0.46474097,84.319,84.291,0.45368963]
[1771024785078,50.98,84.336,84.301,0.45491716]
[1771024785283,0.46474097,84.335,84.301,0.45491716]
[1771024787485,0.46474097,84.333,84.301,0.45491716]
[1771024791468,11.85789498,84.332,84.301,0.45491716]
[1771024791668,0.46474097,84.331,84.301,0.45491716]
[1771024800399,0.46474097,84.329,84.29,3.89325224]
[1771024800586,0.46474097,84.329,84.291,0.45491716]
[1771024801099,0.48179595,84.319,84.282,0.4749013]
[1771024801669,0.48179595,84.317,84.282,0.4749013]
[1771024802083,51.46179595,84.317,84.282,0.4749013]
[1771024802293,0.48179595,84.316,84.282,0.4749013]
[1771024803093,29.64544053,84.33,84.291,0.4749013]
[1771024803094,0.48179595,84.322,84.291,0.4749013]